bitfinex/quotes_SOLUSD_20251208
["timestamp","ask_amount","ask_price","bid_price","bid_amount"]
[1765169885118,4.93205176,135.14,135.11,69.6009856]
[1765169885621,4.14205176,135.12,135.08,46.69355563]
[1765169885817,4.14205176,135.12,135.08,24.468864]
[1765169886137,0.72,135.11,135.08,28.61091576]
[1765169886711,0.72,135.11,135.09,7.40211252]
[1765169889520,4.24205176,135.14,135.09,30.05034534]
[1765169889716,0.82,135.14,135.11,4.14205176]
[1765169889908,0.72,135.13,135.11,66.34205176]
[1765169890516,0.72,135.13,135.11,67.03205176]
[1765169890815,0.72,135.13,135.11,62.2]
[1765169891516,0.72,135.13,135.11,66.34205176]
[1765169891835,0.72,135.13,135.12,7.40082889]
[1765169892042,0.72,135.13,135.11,69.60121848]
[1765169895540,4.14205176,135.12,135.11,62.2]
[1765169895741,12.26261599,135.13,135.11,62.2]
[1765169895914,0.72,135.12,135.11,62.2]
[1765169897426,0.72,135.12,135.11,69.60137665]
[1765169897623,0.72,135.13,135.11,69.60137665]
[1765169898555,0.82,135.14,135.11,70.29137665]
[1765169898728,0.82,135.14,135.11,69.60137665]
[1765169899354,0.61966346,135.14,135.11,69.60137665]
[1765169899525,4.14205176,135.15,135.11,69.60137665]
[1765169899725,11.54141722,135.15,135.11,69.60137665]
[1765169899947,4.14205176,135.14,135.11,69.60137665]
[1765169901336,0.67,135.13,135.11,69.60137665]
[1765169907044,0.67,135.13,135.11,62.2]
[1765169907640,4.81205176,135.13,135.11,62.2]
[1765169908039,0.67,135.12,135.11,62.2]
[1765169912968,0.67,135.12,135.1,69.6019205]
[1765169914449,15.55918608,135.15,135.11,0.71]
[1765169914656,0.67,135.14,135.1,74.45397226]
[1765169914860,0.67,135.14,135.11,0.71]
[1765169915371,0.67,135.14,135.1,74.45397226]
[1765169917074,0.67,135.14,135.11,0.71]
[1765169918675,0.67,135.14,135.12,7.40082889]
[1765169918989,4.14205176,135.13,135.11,62.2]
[1765169919476,0.67,135.12,135.11,62.2]
[1765169924156,0.67,135.13,135.11,62.2]
[1765169924278,0.67,135.12,135.09,62.2]
[1765169924477,0.67,135.12,135.09,70.31243537]
[1765169927194,0.67,135.12,135.09,69.60243537]
[1765169927569,0.67,135.12,135.09,70.31243537]
[1765169938117,12.21308268,135.12,135.08,77.76298916]
[1765169938307,4.14205176,135.1,135.07,62.2]
[1765169938619,4.14205176,135.09,135.06,8.10408007]
[1765169939137,0.71,135.09,135.06,8.10408007]
[1765169943223,20.41304966,135.12,135.07,4.84205176]
[1765169943420,8.87,135.12,135.07,4.84205176]
[1765169943630,8.87,135.12,135.08,0.7]
[1765169944719,8.87,135.12,135.08,8.10249147]
[1765169944942,8.87,135.12,135.09,0.7]
[1765169946536,8.16,135.12,135.09,8.1023948]
[1765169946842,8.87,135.12,135.09,8.1023948]
[1765169947234,8.87,135.12,135.08,7.40293688]
[1765169947235,3.36229791,135.11,135.08,7.40293688]
[1765169947535,3.36229791,135.11,135.07,62.9]
[1765169947723,0.71,135.1,135.07,62.9]
[1765169948422,0.71,135.1,135.07,0.7]
[1765169949738,2.65229791,135.09,135.06,62.2]
[1765169950117,0.71,135.08,135.06,62.2]
[1765169950825,3.36229791,135.09,135.06,70.30407353]
[1765169951342,0.71,135.09,135.06,70.30407353]
[1765169952744,0.71,135.09,135.06,69.60407353]
[1765169953041,10.05378384,135.11,135.07,8.10346924]
[1765169953344,7.40148593,135.11,135.07,70.30346924]
[1765169953544,7.40148593,135.11,135.08,0.7]
[1765169953746,0.71,135.1,135.08,0.7]
[1765169954655,3.36229791,135.1,135.07,69.60346924]
[1765169954819,3.36229791,135.1,135.07,70.30346924]
[1765169955143,0.71,135.1,135.08,0.7]
[1765169955837,0.71,135.1,135.07,69.60346924]
[1765169956136,0.71,135.1,135.07,70.30346924]
[1765169956328,10.05378384,135.11,135.07,69.60346924]
[1765169956531,10.76378384,135.11,135.08,0.7]
[1765169957233,18.21332359,135.12,135.08,70.30270024]
[1765169957429,0.71,135.11,135.08,62.9]
[1765169957750,3.36229791,135.11,135.08,62.9]
[1765169958544,10.7637246,135.11,135.08,62.9]
[1765169961359,18.93324241,135.12,135.09,0.66]
[1765169963047,18.21324241,135.12,135.09,0.66]
[1765169963254,18.93324241,135.12,135.09,62.86]
[1765169964442,3.37229791,135.11,135.09,62.2]
[1765169964647,3.37229791,135.11,135.09,62.86]
[1765169965426,2.65229791,135.11,135.09,62.86]
[1765169968245,2.65229791,135.11,135.09,70.26246287]
[1765169968452,2.65229791,135.11,135.09,62.86]
[1765169968752,18.21319512,135.12,135.1,0.66]
[1765169968924,18.93319512,135.12,135.1,0.66]
[1765169969126,18.93319512,135.12,135.09,62.86]
[1765169969324,18.93319512,135.12,135.1,0.66]
[1765169970351,10.81229791,135.12,135.1,0.66]
[1765169971256,10.81229791,135.12,135.09,69.60240587]
[1765169971439,10.81229791,135.12,135.09,70.26240587]
[1765169971440,11.53229791,135.12,135.09,70.26240587]
[1765169977860,11.53229791,135.12,135.1,0.66]
[1765169978155,11.53229791,135.12,135.09,70.26240587]
[1765169978334,11.53229791,135.12,135.1,0.66]
[1765169978736,10.81229791,135.12,135.1,0.66]
[1765169979759,8.16,135.12,135.1,0.66]
[1765169980055,2.65229791,135.14,135.1,70.26184762]
[1765169980261,11.53229791,135.15,135.1,8.06184762]
[1765169980431,11.53229791,135.15,135.11,0.66]
[1765169980855,10.81229791,135.15,135.11,0.66]
[1765169981056,0.72,135.14,135.11,0.66]
[1765169982361,18.93187136,135.15,135.11,0.66]
[1765169982659,16.27957345,135.15,135.11,8.06123965]
[1765169982849,8.16,135.15,135.11,8.06123965]
[1765169983038,8.16,135.15,135.12,0.66]
[1765169985466,8.88,135.15,135.12,0.66]
[1765169987735,2.65229791,135.13,135.11,62.2]
[1765169987939,2.65229791,135.12,135.09,0.66]
[1765169988257,8.16,135.12,135.09,8.06239915]
[1765169988664,8.16,135.12,135.1,0.66]
[1765169993363,8.14,135.14,135.1,10.71417604]
[1765169993750,8.14,135.14,135.11,0.68]
[1765169995366,8.14,135.14,135.12,7.40082889]
[1765169995775,8.14,135.14,135.12,8.08082889]
[1765169995984,0.66,135.15,135.12,8.08082889]
[1765169997376,0.66,135.15,135.13,0.68]
[1765169997676,0.66,135.15,135.12,8.10082889]
[1765169998881,0.66,135.15,135.12,70.30082889]
[1765170000483,10.71150826,135.15,135.12,62.9]
[1765170000685,2.65229791,135.14,135.12,62.2]
[1765170000869,10.79229791,135.13,135.12,62.2]
[1765170001178,11.45229791,135.13,135.12,62.2]
[1765170001952,20.26224283,135.13,135.07,8.10344923]
[1765170002256,2.65229791,135.11,135.07,8.10344923]
[1765170002462,10.05368611,135.11,135.07,8.10344923]
[1765170002664,10.71368611,135.11,135.08,0.7]
[1765170003277,2.65229791,135.11,135.08,0.7]
[1765170003476,10.05312965,135.12,135.08,0.7]
[1765170003685,10.71312965,135.12,135.08,0.7]
[1765170004690,4.14521864,135.11,135.08,0.7]
[1765170005061,4.14521864,135.11,135.08,8.10291074]
[1765170005292,4.14521864,135.11,135.09,0.7]
[1765170005464,12.20605038,135.12,135.09,0.7]
[1765170005867,12.28521864,135.13,135.09,0.7]
[1765170006163,12.94521864,135.13,135.09,0.7]
[1765170006357,8.14,135.13,135.09,0.7]
[1765170006659,8.14,135.13,135.1,7.4019245]
[1765170006989,4.80521864,135.13,135.1,7.4019245]
[1765170007171,4.80521864,135.14,135.11,0.7]
[1765170008491,4.80521864,135.14,135.11,8.10128134]
[1765170012181,4.14521864,135.12,135.09,62.2]
[1765170012366,12.28521864,135.12,135.09,62.2]
[1765170012692,12.94521864,135.12,135.09,62.9]
[1765170013181,0.66,135.11,135.09,62.9]
[1765170013587,12.20667195,135.11,135.07,69.60350114]
[1765170013893,12.20667195,135.11,135.08,0.7]
[1765170016871,0.66,135.1,135.08,0.7]
[1765170017369,4.14521864,135.09,135.07,62.2]
[1765170017698,4.14521864,135.08,135.07,62.2]
[1765170017878,4.80521864,135.09,135.06,0.7]
[1765170018080,4.80521864,135.09,135.04,7.4048601]
[1765170018384,4.80521864,135.08,135.04,8.1048601]
[1765170018567,4.14521864,135.07,135.04,0.7]
[1765170018771,4.80521864,135.06,135.03,0.7]
[1765170019577,12.20945168,135.06,135.03,0.7]
[1765170020391,35.18308973,135.09,135.03,12.25086308]
[1765170020593,12.94521864,135.09,135.04,0.7]
[1765170021744,11.54840822,135.08,135.04,8.10497468]
[1765170021912,16.20259876,135.09,135.04,12.25019332]
[1765170022211,8.14,135.09,135.05,4.85521864]
[1765170022377,4.14521864,135.11,135.06,4.14521864]
[1765170022577,8.14,135.11,135.06,4.85521864]
[1765170022889,13.00521864,135.11,135.07,0.71]
[1765170023398,20.40675443,135.11,135.07,0.71]
[1765170025608,20.40675443,135.11,135.07,62.91]
[1765170025977,4.14521864,135.08,135.07,62.2]
[1765170026181,4.14521864,135.08,135.04,0.71]
[1765170026384,4.14521864,135.08,135.03,7.40564151]
[1765170026385,4.14521864,135.07,135.05,0.71]
[1765170026702,4.14521864,135.06,135.04,0.71]
[1765170027088,8.14,135.08,135.02,69.60616501]
[1765170027089,4.14521864,135.05,135.02,69.60616501]
[1765170027411,4.14521864,135.05,135.02,7.40616501]
[1765170027412,4.14521864,135.04,135.02,7.40616501]
[1765170027581,4.14521864,135.04,135.02,8.11616501]
[1765170028605,4.86521864,135.05,135.02,8.11616501]
[1765170029388,4.86521864,135.05,135.02,0.71]
[1765170029389,4.14521864,135.04,135.02,0.71]
[1765170029784,4.86521864,135.04,135.01,0.71]
[1765170030713,4.14521864,135.03,135.01,0.71]
[1765170030934,4.14521864,135.02,134.98,7.60830796]
[1765170031215,4.14521864,135.02,134.98,0.91]
[1765170031216,4.14521864,135.01,134.98,0.91]
[1765170031420,4.86521864,135.01,134.98,0.91]
[1765170031721,4.14521864,135.0,134.98,0.91]
[1765170032014,4.86521864,135.0,134.98,0.2]
[1765170032396,4.14521864,135.0,134.98,0.91]
[1765170032823,4.14521864,134.99,134.98,0.2]
[1765170033215,13.02521864,134.99,134.98,0.2]
[1765170033397,20.43317478,134.99,134.98,0.2]
[1765170034097,29.2431197,134.99,134.98,0.2]
[1765170037519,19.71317478,134.99,134.98,0.2]
[1765170037910,15.56795614,134.99,134.98,0.2]
[1765170038504,20.43317478,134.99,134.98,0.2]
[1765170040425,19.71317478,134.99,134.98,0.2]
[1765170041001,12.30521864,134.99,134.98,0.2]
[1765170041209,8.16,134.99,134.98,0.2]
[1765170043302,20.43317478,134.99,134.98,0.2]
[1765170043624,19.71317478,134.99,134.98,0.2]
[1765170043831,12.30521864,134.99,134.98,0.2]
[1765170044134,8.16,134.99,134.98,0.91]
[1765170044717,7.40757308,135.0,134.98,0.91]
[1765170044929,7.40700507,135.01,134.99,0.71]
[1765170045125,19.71164432,135.02,134.99,0.71]
[1765170045331,15.56642568,135.02,134.99,0.71]
[1765170045515,19.71164432,135.02,134.99,0.71]
[1765170046618,15.56642568,135.02,134.99,0.71]
[1765170047931,8.16,135.02,134.99,12.26317362]
[1765170048231,8.16,135.02,134.99,8.11795498]
[1765170048409,8.16,135.02,135.0,0.71]
[1765170048810,15.56641332,135.02,135.0,0.71]
[1765170050836,8.16,135.02,135.0,0.71]
[1765170051022,19.21950382,135.07,135.0,12.26257127]
[1765170051230,13.01521864,135.06,135.0,74.46257127]
[1765170051442,8.16,135.06,135.01,4.85521864]
[1765170051918,8.16,135.06,135.02,0.71]
[1765170052317,15.56415414,135.06,135.02,8.11625092]
[1765170052527,0.71,135.05,135.01,0.71]
[1765170052741,4.85521864,135.05,135.01,0.71]
[1765170053743,0.71,135.04,135.01,0.71]
[1765170054048,4.85521864,135.04,134.99,24.42664394]
[1765170054347,11.5514659,135.03,135.0,0.71]
[1765170054527,19.7114659,135.03,135.0,0.71]
[1765170054728,20.4214659,135.03,135.0,0.71]
[1765170055444,16.27624726,135.03,135.0,0.71]
[1765170060958,20.4214659,135.03,135.0,0.71]
[1765170061167,16.27624726,135.03,135.0,0.71]
[1765170061465,15.56624726,135.03,135.0,0.71]
[1765170061958,16.21624726,135.03,135.0,0.71]
[1765170062271,15.56624726,135.03,135.0,0.71]
[1765170062439,16.21624726,135.03,135.0,0.71]
[1765170066041,0.65,135.02,134.99,0.66]
[1765170066240,19.7114659,135.03,135.0,0.66]
[1765170066539,15.56624726,135.03,135.0,0.66]
[1765170066858,8.16,135.03,135.0,3.31522781]
[1765170067466,8.16,135.03,135.01,0.66]
[1765170068468,8.05418541,135.06,135.01,65.51522781]
[1765170068776,8.16,135.05,135.01,72.92188145]
[1765170068950,8.16,135.05,135.02,0.66]
[1765170069668,3.30522781,135.04,135.01,62.2]
[1765170069971,3.30522781,135.04,135.01,62.86]
[1765170070147,0.65,135.04,135.01,62.86]
[1765170070845,15.56519011,135.05,135.02,0.66]
[1765170071168,16.21519011,135.05,135.02,0.66]
[1765170071668,8.81,135.05,135.02,0.66]
[1765170073072,8.81,135.05,135.02,8.06616598]
[1765170074565,8.81,135.05,135.02,0.66]
[1765170075073,3.30522781,135.04,135.0,8.06733675]
[1765170075454,3.30522781,135.04,135.01,0.66]
[1765170076275,10.7104573,135.04,135.01,0.66]
[1765170078582,8.05522949,135.04,135.01,0.66]
[1765170079386,8.16,135.05,135.01,10.72195502]
[1765170079769,8.16,135.05,135.02,0.66]
[1765170080360,8.16,135.05,135.02,8.06618199]
[1765170080762,8.16,135.05,135.03,0.66]
[1765170081584,0.71,135.04,135.0,0.7]
[1765170081829,3.36522781,135.04,135.01,0.7]
[1765170082658,10.77057947,135.04,135.01,0.7]
[1765170085288,10.77117875,135.03,134.99,7.40793056]
[1765170085495,2.65522781,135.02,134.99,7.40793056]
[1765170085696,10.06117875,135.03,135.0,0.7]
[1765170086009,0.71,135.02,134.99,8.10793056]
[1765170087272,10.77159581,135.02,134.98,62.4]
[1765170087499,10.77159581,135.02,134.98,0.2]
[1765170087500,2.65522781,135.01,134.98,0.2]
[1765170087681,3.36522781,135.01,134.98,0.2]
[1765170088003,3.36522781,135.0,134.98,0.2]
[1765170088708,0.71,135.0,134.98,0.2]
[1765170090391,18.93166938,135.02,134.98,0.9]
[1765170090583,16.27644157,135.02,134.99,0.7]
[1765170090793,15.56644157,135.02,134.99,0.7]
[1765170091101,8.16,135.02,134.99,0.7]
[1765170092207,8.16,135.02,134.99,8.10779876]
[1765170092583,8.16,135.02,135.0,0.7]
[1765170100528,8.87,135.02,135.0,0.7]
[1765170100693,8.16,135.02,134.99,7.40779876]
[1765170101024,8.16,135.02,135.0,0.7]
[1765170101720,8.16,135.02,134.99,7.40779876]
[1765170101924,8.87,135.02,134.99,8.10779876]
[1765170102823,0.71,135.01,134.98,70.50835961]
[1765170103814,0.71,135.01,134.99,0.7]
[1765170104117,0.71,135.01,134.98,70.50835961]
[1765170106925,3.36522781,135.01,134.98,63.1]
[1765170107212,3.36522781,135.01,134.98,62.4]
[1765170107403,0.71,135.0,134.98,62.4]
[1765170107602,3.36522781,135.01,134.98,63.1]
[1765170108021,0.71,135.01,134.98,63.1]
[1765170108703,8.11714037,135.01,134.98,0.9]
[1765170111114,7.40714037,135.01,134.98,0.92]
[1765170111319,0.67,135.0,134.98,0.2]
[1765170111932,0.67,135.0,134.98,0.92]
[1765170112730,10.73236818,135.01,134.98,0.92]
[1765170113233,3.32522781,135.0,134.98,0.2]
[1765170113614,0.67,134.99,134.98,0.2]
[1765170115029,10.06297457,135.0,134.98,0.2]
[1765170115233,8.07774676,135.0,134.98,0.2]
[1765170115418,7.40774676,135.0,134.98,0.92]
[1765170116416,8.07774676,135.0,134.98,0.2]
[1765170116936,7.40707103,135.01,134.98,0.92]
[1765170117436,8.07707103,135.01,134.98,0.92]
[1765170121334,8.07707103,135.01,134.98,8.32849528]
[1765170123845,8.07707103,135.01,134.98,7.60849528]
[1765170124024,8.07707103,135.01,134.99,0.7]
[1765170124428,10.73229884,135.01,134.99,0.7]
[1765170125036,3.30522781,135.0,134.98,0.2]
[1765170125229,10.81522781,134.99,134.98,0.2]
[1765170125428,11.46522781,134.99,134.98,0.2]
[1765170126026,33.88911732,134.99,134.98,0.2]
[1765170126868,33.88911732,134.99,134.97,0.2]
[1765170127037,12.11517273,134.98,134.97,1e-08]
[1765170127219,16.308864,134.96,134.95,0.2]
[1765170127418,29.77931962,134.96,134.95,0.2]
[1765170127618,27.77409181,134.96,134.95,0.2]
[1765170127838,30.74222151,134.96,134.95,0.2]
[1765170128539,40.80705216,134.96,134.95,0.2]
[1765170128743,43.80970188,134.96,134.95,0.2]
[1765170128923,52.6196468,134.96,134.95,1e-08]
[1765170129238,0.65,134.95,134.92,0.2]
[1765170129555,4.15655267,134.94,134.92,0.2]
[1765170129843,7.12490263,134.94,134.92,0.2]
[1765170130050,7.77490263,134.94,134.92,0.2]
[1765170130658,15.18560368,134.94,134.92,0.2]
[1765170135137,23.34560368,134.94,134.92,0.2]
[1765170138665,16.308864,134.93,134.92,0.2]
[1765170138872,4.15655267,134.91,134.9,0.2]
[1765170139074,12.31655267,134.91,134.9,0.2]
[1765170139236,15.93556361,134.91,134.9,0.2]
[1765170141268,23.34791258,134.91,134.9,0.2]
[1765170142268,22.69791258,134.91,134.9,0.91]
[1765170142580,0.99999999,134.97,134.9,0.91]
[1765170142581,18.5259031,134.95,134.9,0.91]
[1765170142738,15.57070105,134.94,134.91,0.71]
[1765170143169,7.41070105,134.94,134.91,4.86655267]
[1765170143375,4.15655267,134.92,134.9,0.2]
[1765170143551,12.31655267,134.91,134.9,0.2]
[1765170146268,29.23884656,134.91,134.9,1e-08]
[1765170146467,45.54771056,134.91,134.9,1e-08]
[1765170146785,33.39539923,134.91,134.9,1e-08]
[1765170147084,8.80994492,134.88,134.86,0.2]
[1765170147387,19.73110001,134.87,134.86,0.2]
[1765170147588,20.43110001,134.87,134.86,0.2]
[1765170147767,23.40121324,134.87,134.86,0.2]
[1765170148170,22.70121324,134.87,134.86,0.2]
[1765170149172,19.73110001,134.87,134.86,0.2]
[1765170150267,19.73110001,134.87,134.86,0.91]
[1765170150865,16.308864,134.85,134.84,0.2]
[1765170151090,28.62541667,134.85,134.84,0.2]
[1765170151365,29.32541667,134.85,134.84,0.2]
[1765170153490,36.74106368,134.85,134.84,0.2]
[1765170153676,39.01139747,134.85,134.84,0.91]
[1765170153995,36.04106368,134.85,134.84,0.91]
[1765170154193,15.57564701,134.85,134.84,0.91]
[1765170154389,19.73219968,134.85,134.84,0.91]
[1765170155392,45.5510086,134.85,134.84,0.2]
[1765170156281,29.2421446,134.85,134.84,0.2]
[1765170159802,29.2421446,134.85,134.84,1e-08]
[1765170161593,45.5510086,134.85,134.84,1e-08]
[1765170163214,36.74106368,134.85,134.84,1e-08]
[1765170163412,36.04106368,134.85,134.84,1e-08]
[1765170163587,36.74106368,134.85,134.84,1e-08]
[1765170166400,27.88106368,134.85,134.84,0.71000001]
[1765170166600,31.90451101,134.85,134.84,0.71000001]
[1765170166828,8.18,134.85,134.84,0.71000001]
[1765170176220,15.59564701,134.85,134.84,0.71000001]
[1765170176620,19.75219968,134.85,134.84,0.68000001]
[1765170177327,15.59564701,134.85,134.84,0.68000001]
[1765170177495,19.75219968,134.85,134.84,1e-08]
[1765170177901,20.44219968,134.85,134.84,1e-08]
[1765170178144,19.75219968,134.85,134.84,1e-08]
[1765170179455,20.44219968,134.85,134.84,1e-08]
[1765170180816,19.75219968,134.85,134.84,1e-08]
[1765170181012,15.59564701,134.85,134.84,0.68000001]
[1765170181320,20.44219968,134.85,134.84,1e-08]
[1765170181523,19.75219968,134.85,134.84,1e-08]
[1765170182025,20.44219968,134.85,134.84,1e-08]
[1765170182228,19.75219968,134.85,134.84,1e-08]
[1765170182698,20.44219968,134.85,134.84,1e-08]
[1765170183608,36.75106368,134.85,134.84,1e-08]
[1765170184309,45.5610086,134.85,134.84,1e-08]
[1765170187345,16.308864,134.82,134.81,0.2]
[1765170187510,32.80196934,134.82,134.81,0.2]
[1765170187709,40.90926647,134.82,134.81,0.2]
[1765170188937,36.0627138,134.82,134.81,0.88]
[1765170189114,36.0627138,134.82,134.81,0.2]
[1765170189631,36.7527138,134.82,134.81,0.2]
[1765170190531,36.0627138,134.82,134.81,0.2]
[1765170190705,34.57146449,134.82,134.81,0.2]
[1765170196840,35.26146449,134.82,134.81,0.2]
[1765170197028,34.57146449,134.82,134.81,0.2]
[1765170199243,35.26146449,134.82,134.81,0.2]
[1765170199428,37.92676785,134.82,134.81,0.2]
[1765170200552,35.26146449,134.82,134.81,0.2]
[1765170200850,46.73671277,134.82,134.81,1e-08]
[1765170202830,9.51994492,134.81,134.8,1e-08]
[1765170203032,12.18524828,134.81,134.8,1e-08]
[1765170203519,11.47524828,134.81,134.8,1e-08]
[1765170203919,2.66530336,134.81,134.8,1e-08]
[1765170204340,10.0831507,134.81,134.8,1e-08]
[1765170204744,10.0831507,134.81,134.8,0.69000001]
[1765170205846,10.0831507,134.81,134.8,1e-08]
[1765170206637,10.0831507,134.81,134.8,0.69000001]
[1765170211148,18.89309562,134.81,134.79,1e-08]
[1765170211348,11.55530336,134.8,134.79,1e-08]
[1765170211648,20.36524828,134.8,134.79,1e-08]
[1765170213329,18.26370098,134.8,134.79,1e-08]
[1765170213835,18.97370098,134.8,134.79,1e-08]
[1765170216558,27.7836459,134.8,134.79,1e-08]
[1765170217757,30.75552449,134.8,134.79,1e-08]
[1765170223644,30.75552449,134.8,134.77,0.2]
[1765170223645,9.51994492,134.79,134.77,1e-08]
[1765170223851,10.84530336,134.78,134.77,1e-08]
[1765170224054,11.55530336,134.78,134.77,1e-08]
[1765170224365,14.52784451,134.78,134.77,1e-08]
[1765170225342,38.25620695,134.78,134.77,1e-08]
[1765170227267,29.36620695,134.78,134.77,1e-08]
[1765170227470,37.54620695,134.78,134.77,1e-08]
[1765170227949,38.25620695,134.78,134.77,1e-08]
[1765170228148,0.71,134.77,134.76,1e-08]
[1765170228350,12.18524828,134.77,134.73,0.2]
[1765170228550,8.80994492,134.75,134.73,0.2]
[1765170228875,8.18,134.74,134.73,0.2]
[1765170229083,8.18,134.74,134.73,0.89]
[1765170229250,15.60170105,134.74,134.73,0.2]
[1765170229449,15.60170105,134.74,134.73,0.89]
[1765170230565,18.26700441,134.74,134.73,0.89]
[1765170232003,15.60170105,134.74,134.73,0.89]
[1765170232464,18.26700441,134.74,134.73,0.89]
[1765170236066,15.60170105,134.74,134.73,0.89]
[1765170237263,18.26700441,134.74,134.73,0.89]
[1765170241263,15.60170105,134.74,134.73,0.89]
[1765170242682,7.62353683,134.77,134.73,0.89]
[1765170242872,240.40635037,135.14,134.76,2.66530336]
[1765170242873,2.66530336,134.82,134.76,2.66530336]
[1765170243078,8.09674701,134.83,134.78,2.66530336]
[1765170243079,25.95861454,134.83,134.78,2.66530336]
[1765170243268,7.41624284,134.84,134.81,2.66530336]
[1765170243766,7.41624284,134.84,134.82,0.7]
[1765170244689,2.66530336,134.83,134.82,0.7]
[1765170245765,10.84530336,134.83,134.82,0.7]
[1765170246093,15.59674701,134.83,134.82,0.7]
[1765170247071,0.68,134.82,134.79,1.70733193]
[1765170247278,16.308864,134.8,134.76,0.7]
[1765170247589,18.97416736,134.78,134.76,0.7]
[1765170247780,8.2,134.77,134.76,0.7]
[1765170251496,15.62004897,134.77,134.76,0.7]
[1765170253591,19.78596151,134.77,134.74,0.68]
[1765170254696,15.62004897,134.77,134.74,0.68]
[1765170254902,19.78596151,134.77,134.74,0.68]
[1765170260801,38.33608394,134.77,134.74,0.68]
[1765170261106,4.16591254,134.75,134.73,0.2]
[1765170261297,12.36591254,134.74,134.73,0.2]
[1765170262716,19.78761359,134.74,134.73,0.2]
[1765170264185,15.62170105,134.74,134.73,0.2]
[1765170264407,7.42170105,134.74,134.73,0.2]
[1765170264582,15.62170105,134.74,134.73,0.87]
[1765170267989,15.62170105,134.74,134.73,0.2]
[1765170268305,15.62170105,134.74,134.73,0.87]
[1765170269716,19.78761359,134.74,134.73,0.87]
[1765170272386,19.78761359,134.74,134.73,0.2]
[1765170272587,36.79647759,134.74,134.73,0.2]
[1765170272793,36.79647759,134.74,134.7,0.2]
[1765170272794,16.308864,134.71,134.7,0.2]
[1765170273020,28.67477654,134.71,134.7,0.2]
[1765170273221,29.37477654,134.71,134.7,0.2]
[1765170274295,31.93221787,134.71,134.7,0.2]
[1765170274494,36.09813041,134.71,134.7,0.2]
[1765170277926,36.09813041,134.71,134.7,0.87]
[1765170278296,23.73221787,134.71,134.7,0.87]
[1765170278513,31.93221787,134.71,134.7,0.87]
[1765170279399,7.42335387,134.71,134.7,0.87]
[1765170279722,8.2,134.71,134.7,0.87]
[1765170281198,15.62180656,134.74,134.7,12.459802]
[1765170281404,8.2,134.74,134.71,4.83591254]
[1765170281618,8.2,134.74,134.72,0.67]
[1765170286126,15.62072795,134.76,134.72,4.83591254]
[1765170286333,7.42022752,134.77,134.74,4.16591254]
[1765170286710,7.42022752,134.77,134.75,0.67]
[1765170288710,8.2,134.78,134.75,4.83591254]
[1765170289108,8.2,134.78,134.76,0.67]
[1765170298542,8.2,134.78,134.76,4.83591254]
[1765170298738,8.2,134.78,134.77,0.69]
[1765170299331,8.2,134.78,134.77,4.85591254]
[1765170299570,7.41729713,134.82,134.77,4.85591254]
[1765170299732,7.41729713,134.82,134.79,4.16591254]
[1765170299733,15.61729713,134.82,134.79,4.16591254]
[1765170300129,15.61729713,134.82,134.8,0.69]
[1765170307139,15.61729713,134.82,134.77,4.16591254]
[1765170307351,39.02645251,134.82,134.78,0.69]
[1765170307560,0.7,134.81,134.78,0.69]
[1765170307845,8.2,134.8,134.76,7.42025701]
[1765170308151,4.16591254,134.79,134.74,0.69]
[1765170308324,12.36591254,134.78,134.75,0.69]
[1765170308647,4.16591254,134.77,134.73,0.69]
[1765170308827,8.2,134.76,134.74,0.69]
[1765170309428,15.6207526,134.76,134.74,0.69]
[1765170311153,8.2,134.76,134.74,12.27755829]
[1765170311333,8.2,134.76,134.74,11.58755829]